[Event "NJSK 2021 Jeugd C"]
[Site "Almelo, Netherlands"]
[Date "2021.08.04"]
[Round "5.12"]
[White "Sazonov, Fedor"]
[Black "Lankheet, Hidde"]
[Result "0-1"]
[TimeControl "90min + 30sec/move"]
[WhiteElo "1650"]
[BlackElo "1000"]

1. d4 {[%clk 01:30:58]} {[%emt 00:00:01]} d5 {[%clk 01:30:55]} {[%emt
00:00:05]} 2. c4 {[%clk 01:31:25]} {[%emt 00:00:03]} e6 {[%clk 01:31:18]}
{[%emt 00:00:08]} 3. Nf3 {[%clk 01:31:48]} {[%emt 00:00:06]} Nf6 {[%clk
01:31:39]} {[%emt 00:00:09]} 4. g3 {[%clk 01:32:07]} {[%emt 00:00:11]} Bd6
{[%clk 01:31:35]} {[%emt 00:00:34]} 5. Bg2 {[%clk 01:32:13]} {[%emt 00:00:24]}
O-O {[%clk 01:31:30]} {[%emt 00:00:36]} 6. O-O {[%clk 01:32:35]} {[%emt
00:00:08]} Re8 {[%clk 01:31:47]} {[%emt 00:00:12]} 7. Qc2 {[%clk 01:23:35]}
{[%emt 00:09:30]} Nbd7 {[%clk 01:30:47]} {[%emt 00:01:31]} 8. Rd1 {[%clk
01:18:17]} {[%emt 00:05:48]} c6 {[%clk 01:26:48]} {[%emt 00:04:29]} 9. Nbd2
{[%clk 01:13:36]} {[%emt 00:05:11]} e5 {[%clk 01:24:00]} {[%emt 00:03:18]} 10.
dxe5 {[%clk 01:11:37]} {[%emt 00:02:28]} Nxe5 {[%clk 01:24:09]} {[%emt
00:00:22]} 11. Nxe5 {[%clk 01:11:34]} {[%emt 00:00:32]} Bxe5 {[%clk 01:24:24]}
{[%emt 00:00:14]} 12. cxd5 {[%clk 01:09:59]} {[%emt 00:02:06]} Nxd5 {[%clk
01:22:13]} {[%emt 00:02:42]} 13. Nc4 {[%clk 01:08:59]} {[%emt 00:01:29]} Bf6
{[%clk 01:20:41]} {[%emt 00:02:04]} 14. e4 {[%clk 01:07:35]} {[%emt 00:01:53]}
Be6 {[%clk 01:12:32]} {[%emt 00:08:39]} 15. exd5 {[%clk 01:06:27]} {[%emt
00:01:38]} cxd5 {[%clk 01:12:27]} {[%emt 00:00:36]} 16. Ne3 {[%clk 00:58:29]}
{[%emt 00:08:28]} Rc8 {[%clk 01:09:24]} {[%emt 00:03:33]} 17. Qd3 {[%clk
00:55:52]} {[%emt 00:03:06]} d4 {[%clk 01:09:11]} {[%emt 00:00:43]} 18. Nc2
{[%clk 00:52:53]} {[%emt 00:03:29]} Bc4 {[%clk 01:06:56]} {[%emt 00:02:46]} 19.
Qf3 {[%clk 00:50:17]} {[%emt 00:03:04]} Be2 {[%clk 01:06:45]} {[%emt 00:00:42]}
20. Qxb7 {[%clk 00:43:09]} {[%emt 00:07:39]} Bxd1 {[%clk 01:05:40]} {[%emt
00:01:34]} 21. Bf4 {[%clk 00:37:31]} {[%emt 00:06:09]} Bxc2 {[%clk 01:03:11]}
{[%emt 00:02:59]} 22. Bh3 {[%clk 00:33:51]} {[%emt 00:04:09]} d3 {[%clk
00:55:48]} {[%emt 00:07:54]} 23. Bxc8 {[%clk 00:32:14]} {[%emt 00:02:06]} Qxc8
{[%clk 00:56:12]} {[%emt 00:00:07]} 24. Qb4 {[%clk 00:31:44]} {[%emt 00:00:59]}
Be5 {[%clk 00:54:16]} {[%emt 00:02:26]} 25. Bd2 {[%clk 00:30:03]} {[%emt
00:02:10]} Qb8 {[%clk 00:53:21]} {[%emt 00:01:26]} 26. Re1 {[%clk 00:26:00]}
{[%emt 00:04:33]} Qxb4 {[%clk 00:53:13]} {[%emt 00:00:38]} 27. Bxb4 {[%clk
00:26:11]} {[%emt 00:00:19]} f6 {[%clk 00:52:55]} {[%emt 00:00:48]} 28. Kf1
{[%clk 00:25:59]} {[%emt 00:00:42]} Kf7 {[%clk 00:51:59]} {[%emt 00:01:26]} 29.
b3 {[%clk 00:25:58]} {[%emt 00:00:32]} Rc8 {[%emt 00:01:11]} 30. f4 {[%clk
00:25:58]} Bc3 {[%clk 00:51:35]} {[%emt 00:00:42]} 31. Re7+ {[%clk 00:26:18]}
{[%emt 00:00:10]} Kg6 {[%clk 00:51:47]} {[%emt 00:00:18]} 32. Bxc3 {[%clk
00:20:53]} {[%emt 00:05:55]} Rxc3 {[%emt 00:00:16]} 33. Ke1 {[%emt 00:00:11]}
Rc6 {[%clk 00:51:12]} {[%emt 00:00:37]} 34. Rxa7 {[%clk 00:21:12]} {[%emt
00:00:12]} Re6+ {[%clk 00:51:17]} {[%emt 00:00:25]} 35. Kd2 {[%clk 00:21:26]}
{[%emt 00:00:16]} Re2+ {[%clk 00:51:15]} {[%emt 00:00:33]} 36. Kc1 {[%clk
00:21:48]} {[%emt 00:00:05]} Rxh2 {[%clk 00:51:30]} {[%emt 00:00:17]} 37. b4
{[%clk 00:22:00]} {[%emt 00:00:18]} Re2 {[%clk 00:51:07]} {[%emt 00:00:53]} 38.
g4 {[%clk 00:20:49]} {[%emt 00:01:41]} Re4 {[%clk 00:49:32]} {[%emt 00:02:05]}
39. b5 {[%clk 00:20:33]} {[%emt 00:00:46]} Rb4 {[%clk 00:49:35]} {[%emt
00:00:27]} 40. a4 {[%clk 00:20:50]} {[%emt 00:00:14]} Bxa4 {[%clk 00:49:33]}
{[%emt 00:00:30]} 41. Kd2 {[%clk 00:21:08]} {[%emt 00:00:13]} Bxb5 {[%clk
00:49:22]} {[%emt 00:00:41]} 42. Kc3 {[%clk 00:20:36]} {[%emt 00:01:02]} Rc4+
{[%clk 00:49:21]} {[%emt 00:00:31]} 0-1

[Event "NJSK 2021 Jeugd C"]
[Site "Almelo, Netherlands"]
[Date "2021.08.05"]
[Round "6.1"]
[White "Kumar, Prajit Sai"]
[Black "Bakija, Alan"]
[Result "1/2-1/2"]
[TimeControl "90min + 30sec/move"]
[WhiteElo "1811"]
[BlackElo "1870"]

1. d4 {[%clk 01:30:58]} {[%emt 00:00:02]} Nf6 {[%clk 01:30:56]} {[%emt
00:00:04]} 2. c4 {[%clk 01:31:24]} {[%emt 00:00:04]} e6 {[%clk 01:31:23]}
{[%emt 00:00:03]} 3. Nc3 {[%clk 01:31:49]} {[%emt 00:00:05]} Bb4 {[%clk
01:31:50]} {[%emt 00:00:03]} 4. Qc2 {[%clk 01:32:13]} {[%emt 00:00:05]} O-O
{[%clk 01:32:14]} {[%emt 00:00:06]} 5. Nf3 {[%clk 01:32:40]} {[%emt 00:00:04]}
c5 {[%clk 01:32:39]} {[%emt 00:00:05]} 6. dxc5 {[%clk 01:32:51]} {[%emt
00:00:19]} Na6 {[%clk 01:32:48]} {[%emt 00:00:21]} 7. g3 {[%clk 01:33:01]}
{[%emt 00:00:20]} Nxc5 {[%clk 01:32:58]} {[%emt 00:00:20]} 8. a3 {[%clk
01:32:05]} {[%emt 00:01:26]} Bxc3+ {[%clk 01:33:07]} {[%emt 00:00:21]} 9. Qxc3
{[%clk 01:32:28]} {[%emt 00:00:07]} Nce4 {[%clk 01:32:25]} {[%emt 00:01:12]} 10.
Qc2 {[%clk 01:32:22]} {[%emt 00:00:36]} d5 {[%clk 01:31:28]} {[%emt 00:01:26]}
11. Bg2 {[%clk 01:29:39]} {[%emt 00:03:13]} Bd7 {[%clk 01:25:42]} {[%emt
00:06:17]} 12. cxd5 {[%clk 01:27:51]} {[%emt 00:02:18]} exd5 {[%clk 01:24:56]}
{[%emt 00:01:16]} 13. O-O {[%clk 01:27:57]} {[%emt 00:00:24]} Rc8 {[%clk
01:18:25]} {[%emt 00:07:01]} 14. Qd1 {[%clk 01:24:58]} {[%emt 00:03:29]} a5
{[%clk 01:13:06]} {[%emt 00:05:49]} 15. Be3 {[%clk 01:19:48]} {[%emt 00:05:39]}
a4 {[%clk 01:07:33]} {[%emt 00:06:04]} 16. Qd3 {[%clk 01:14:22]} {[%emt
00:05:55]} 1/2-1/2

[Event "NJSK 2021 Jeugd C"]
[Site "Almelo, Netherlands"]
[Date "2021.08.05"]
[Round "6.2"]
[White "Kurt, Sascha"]
[Black "De Winter, Arthur"]
[Result "0-1"]
[TimeControl "90min + 30sec/move"]
[WhiteElo "1650"]
[BlackElo "2000"]

1. e4 {[%clk 01:30:56]} {[%emt 00:00:03]} c5 {[%clk 01:30:56]} {[%emt
00:00:05]} 2. Nf3 {[%clk 01:31:20]} {[%emt 00:00:06]} Nc6 {[%clk 01:31:23]}
{[%emt 00:00:02]} 3. d4 {[%clk 01:31:43]} {[%emt 00:00:07]} cxd4 {[%clk
01:31:50]} {[%emt 00:00:03]} 4. Nxd4 {[%clk 01:32:07]} {[%emt 00:00:05]} Nf6
{[%clk 01:32:17]} {[%emt 00:00:02]} 5. Nc3 {[%clk 01:32:23]} {[%emt 00:00:14]}
e5 {[%clk 01:32:44]} {[%emt 00:00:03]} 6. Ndb5 {[%clk 01:32:48]} {[%emt
00:00:06]} d6 {[%clk 01:33:09]} {[%emt 00:00:04]} 7. Bg5 {[%clk 01:33:10]}
{[%emt 00:00:08]} a6 {[%clk 01:33:36]} {[%emt 00:00:04]} 8. Na3 {[%clk
01:33:33]} {[%emt 00:00:07]} b5 {[%clk 01:34:02]} {[%emt 00:00:03]} 9. Nd5
{[%clk 01:33:57]} {[%emt 00:00:07]} Be7 {[%clk 01:34:27]} {[%emt 00:00:05]} 10.
Bxf6 {[%clk 01:34:22]} {[%emt 00:00:05]} Bxf6 {[%clk 01:34:54]} {[%emt
00:00:03]} 11. c3 {[%clk 01:34:37]} {[%emt 00:00:15]} Ne7 {[%clk 01:35:14]}
{[%emt 00:00:09]} 12. Nc2 {[%clk 01:34:55]} {[%emt 00:00:12]} Nxd5 {[%clk
01:35:26]} {[%emt 00:00:17]} 13. Qxd5 {[%clk 01:35:20]} {[%emt 00:00:06]} Ra7
{[%clk 01:35:41]} {[%emt 00:00:15]} 14. Nb4 {[%clk 01:34:54]} {[%emt 00:00:56]}
Bb7 {[%clk 01:36:01]} {[%emt 00:00:10]} 15. Qd3 {[%clk 01:35:15]} {[%emt
00:00:08]} Qa8 {[%clk 01:35:51]} {[%emt 00:00:40]} 16. Nd5 {[%clk 01:34:59]}
{[%emt 00:00:46]} Bxd5 {[%clk 01:34:53]} {[%emt 00:01:28]} 17. Qxd5 {[%clk
01:35:21]} {[%emt 00:00:09]} O-O {[%clk 01:33:34]} {[%emt 00:01:49]} 18. Qxa8
{[%clk 01:34:53]} {[%emt 00:00:58]} Raxa8 {[%clk 01:33:39]} {[%emt 00:00:25]}
19. O-O-O {[%clk 01:33:53]} {[%emt 00:01:30]} Rfd8 {[%clk 01:32:42]} {[%emt
00:01:26]} 20. b4 {[%clk 01:33:14]} {[%emt 00:01:10]} Rac8 {[%clk 01:08:40]}
{[%emt 00:24:32]} 21. Kb2 {[%clk 01:32:17]} {[%emt 00:01:27]} d5 {[%clk
01:07:25]} {[%emt 00:01:46]} 22. Rxd5 {[%clk 01:31:34]} {[%emt 00:01:12]} Rxd5
{[%clk 01:07:35]} {[%emt 00:00:20]} 23. exd5 {[%clk 01:31:59]} {[%emt
00:00:06]} e4 {[%clk 01:07:59]} {[%emt 00:00:05]} 24. Be2 {[%clk 01:30:13]}
{[%emt 00:02:15]} Bxc3+ {[%clk 01:05:19]} {[%emt 00:03:10]} 25. Kb3 {[%clk
01:29:29]} {[%emt 00:01:15]} Be5 {[%clk 01:04:27]} {[%emt 00:01:21]} 26. Re1
{[%clk 01:25:34]} {[%emt 00:04:25]} Rc3+ {[%clk 00:54:17]} {[%emt 00:10:41]} 27.
Kb2 {[%clk 01:25:55]} {[%emt 00:00:08]} Rf3+ {[%clk 00:54:41]} {[%emt
00:00:06]} 28. Kb1 {[%clk 01:25:38]} {[%emt 00:00:48]} Rxf2 {[%clk 00:55:03]}
{[%emt 00:00:07]} 29. a4 {[%clk 01:23:00]} {[%emt 00:03:08]} bxa4 {[%clk
00:54:22]} {[%emt 00:01:11]} 30. Rc1 {[%clk 01:18:59]} {[%emt 00:04:30]} Kf8
{[%clk 00:53:37]} {[%emt 00:01:16]} 31. Rc8+ {[%clk 01:17:49]} {[%emt
00:01:40]} Ke7 {[%clk 00:54:01]} {[%emt 00:00:06]} 32. Bxa6 {[%clk 01:16:13]}
{[%emt 00:02:06]} Rb2+ {[%clk 00:53:58]} {[%emt 00:00:33]} 0-1

[Event "NJSK 2021 Jeugd C"]
[Site "Almelo, Netherlands"]
[Date "2021.08.05"]
[Round "6.3"]
[White "Zecha, Oscar"]
[Black "Labruyere, Roger"]
[Result "1/2-1/2"]
[TimeControl "90min + 30sec/move"]
[WhiteElo "1650"]
[BlackElo "2003"]

1. d4 {[%clk 01:30:59]} d5 {[%clk 01:30:59]} {[%emt 00:00:01]} 2. c4 {[%clk
01:31:23]} {[%emt 00:00:06]} c6 {[%clk 01:31:27]} {[%emt 00:00:03]} 3. Nf3
{[%clk 01:31:50]} {[%emt 00:00:04]} Nf6 {[%clk 01:31:53]} {[%emt 00:00:04]} 4.
e3 {[%clk 01:32:15]} {[%emt 00:00:05]} Bg4 {[%clk 01:32:02]} {[%emt 00:00:19]}
5. Qb3 {[%clk 01:32:19]} {[%emt 00:00:27]} Qb6 {[%clk 01:30:56]} {[%emt
00:01:35]} 6. Ne5 {[%clk 01:30:52]} {[%emt 00:01:58]} e6 {[%clk 01:29:25]}
{[%emt 00:02:01]} 7. Bd2 {[%clk 01:23:02]} {[%emt 00:08:20]} Nbd7 {[%clk
01:27:13]} {[%emt 00:02:42]} 8. Nxg4 {[%clk 01:21:04]} {[%emt 00:02:28]} Nxg4
{[%clk 01:27:41]} {[%emt 00:00:02]} 9. Be2 {[%clk 01:20:53]} {[%emt 00:00:42]}
Ngf6 {[%clk 01:26:28]} {[%emt 00:01:43]} 10. Nc3 {[%clk 01:20:29]} {[%emt
00:00:54]} Be7 {[%clk 01:25:09]} {[%emt 00:01:48]} 11. O-O {[%clk 01:20:07]}
{[%emt 00:00:52]} O-O {[%clk 01:23:06]} {[%emt 00:02:33]} 12. Rfd1 {[%clk
01:18:34]} {[%emt 00:02:04]} Rfc8 {[%clk 01:11:55]} {[%emt 00:11:41]} 13. Rac1
{[%clk 01:11:56]} {[%emt 00:07:08]} Rab8 {[%clk 01:09:06]} {[%emt 00:03:19]} 14.
Rc2 {[%clk 01:04:01]} {[%emt 00:08:25]} Qd8 {[%clk 01:05:13]} {[%emt 00:04:23]}
15. Bf3 {[%clk 01:02:56]} {[%emt 00:01:36]} Nb6 {[%clk 01:03:32]} {[%emt
00:02:11]} 16. cxd5 {[%clk 01:02:00]} {[%emt 00:01:26]} cxd5 {[%clk 01:03:54]}
{[%emt 00:00:08]} 17. Be1 {[%clk 01:00:26]} {[%emt 00:02:04]} Qd7 {[%clk
01:00:05]} {[%emt 00:04:19]} 18. e4 {[%clk 00:57:56]} {[%emt 00:03:01]} dxe4
{[%clk 00:58:03]} {[%emt 00:02:32]} 19. Nxe4 {[%clk 00:57:39]} {[%emt
00:00:47]} Nxe4 {[%emt 00:04:31]} 20. Bxe4 {[%clk 00:57:50]} {[%emt 00:00:18]}
h6 {[%clk 00:51:57]} {[%emt 00:02:35]} 21. Qg3 {[%clk 00:48:31]} {[%emt
00:09:49]} Bd6 {[%clk 00:49:41]} {[%emt 00:02:46]} 22. Qh3 {[%clk 00:43:38]}
{[%emt 00:05:21]} Rxc2 {[%clk 00:47:23]} {[%emt 00:02:50]} 23. Bxc2 {[%clk
00:43:59]} {[%emt 00:00:09]} Nd5 {[%clk 00:47:44]} {[%emt 00:00:10]} 24. Bd2
{[%clk 00:41:27]} {[%emt 00:03:02]} Bf8 {[%clk 00:41:14]} {[%emt 00:06:59]} 25.
Re1 {[%clk 00:35:35]} {[%emt 00:06:23]} Bb4 {[%clk 00:32:43]} {[%emt 00:09:01]}
26. Qg3 {[%clk 00:28:32]} {[%emt 00:07:32]} Bd6 {[%clk 00:30:32]} {[%emt
00:02:43]} 27. Qh3 {[%clk 00:26:16]} {[%emt 00:02:45]} Rc8 {[%clk 00:26:47]}
{[%emt 00:04:15]} 28. Bb3 {[%clk 00:24:24]} {[%emt 00:02:22]} Be7 {[%clk
00:21:08]} {[%emt 00:06:10]} 29. Re4 {[%clk 00:19:27]} {[%emt 00:05:27]} Bg5
{[%clk 00:15:18]} {[%emt 00:06:20]} 30. Bxg5 {[%clk 00:16:48]} {[%emt
00:03:09]} hxg5 {[%clk 00:15:46]} {[%emt 00:00:02]} 31. Re1 {[%clk 00:13:24]}
{[%emt 00:03:55]} Nf4 {[%clk 00:14:30]} {[%emt 00:01:46]} 32. Qf3 {[%clk
00:12:24]} {[%emt 00:01:29]} Rd8 {[%clk 00:07:57]} {[%emt 00:07:04]} 33. g3
{[%clk 00:12:02]} {[%emt 00:00:52]} Ng6 {[%clk 00:07:45]} {[%emt 00:00:41]} 34.
Qg4 {[%clk 00:11:00]} {[%emt 00:01:33]} Qxd4 {[%clk 00:05:09]} {[%emt
00:03:06]} 1/2-1/2

[Event "NJSK 2021 Jeugd C"]
[Site "Almelo, Netherlands"]
[Date "2021.08.05"]
[Round "6.4"]
[White "Smeets, Kobe"]
[Black "Ponomarev, Ivan"]
[Result "1-0"]
[TimeControl "90min + 30sec/move"]
[WhiteElo "1897"]
[BlackElo "1723"]

1. e4 {[%clk 01:30:58]} {[%emt 00:00:02]} c5 {[%clk 01:30:58]} {[%emt
00:00:03]} 2. Nf3 {[%clk 01:31:20]} {[%emt 00:00:07]} e6 {[%clk 01:31:26]}
{[%emt 00:00:03]} 3. d4 {[%clk 01:31:41]} {[%emt 00:00:09]} cxd4 {[%clk
01:31:52]} {[%emt 00:00:03]} 4. Nxd4 {[%clk 01:32:04]} {[%emt 00:00:07]} Nf6
{[%clk 01:32:18]} {[%emt 00:00:04]} 5. Nc3 {[%clk 01:32:16]} {[%emt 00:00:19]}
Nc6 {[%emt 00:00:06]} 6. Ndb5 {[%clk 01:32:21]} {[%emt 00:00:23]} Bb4 {[%clk
01:32:17]} {[%emt 00:00:58]} 7. a3 {[%clk 01:32:25]} {[%emt 00:00:26]} Bxc3+
{[%clk 01:32:18]} {[%emt 00:00:29]} 8. Nxc3 {[%clk 01:32:47]} {[%emt 00:00:07]}
d5 {[%clk 01:29:07]} {[%emt 00:03:41]} 9. exd5 {[%clk 01:32:45]} {[%emt
00:00:32]} Nxd5 {[%clk 01:27:46]} {[%emt 00:01:51]} 10. Bd2 {[%clk 01:31:41]}
{[%emt 00:01:35]} O-O {[%clk 01:26:38]} {[%emt 00:01:37]} 11. Bd3 {[%clk
01:30:24]} {[%emt 00:01:46]} Nxc3 {[%clk 01:18:32]} {[%emt 00:08:36]} 12. Bxc3
{[%clk 01:30:08]} {[%emt 00:00:45]} e5 {[%clk 01:17:07]} {[%emt 00:01:56]} 13.
O-O {[%clk 01:28:07]} {[%emt 00:02:31]} Be6 {[%clk 01:11:21]} {[%emt 00:06:17]}
14. Qh5 {[%clk 01:24:25]} {[%emt 00:04:11]} f5 {[%clk 01:09:23]} {[%emt
00:02:28]} 15. Rad1 {[%clk 01:20:05]} {[%emt 00:04:50]} Qe8 {[%clk 01:03:04]}
{[%emt 00:06:49]} 16. Qh4 {[%clk 01:15:32]} {[%emt 00:05:02]} Rd8 {[%clk
01:00:55]} {[%emt 00:02:40]} 17. Bb5 {[%clk 01:14:20]} {[%emt 00:01:42]} Bd5
{[%clk 00:55:13]} {[%emt 00:06:12]} 18. Rxd5 {[%clk 01:02:17]} {[%emt
00:12:34]} Rxd5 {[%clk 00:55:05]} {[%emt 00:00:37]} 19. Bc4 {[%clk 01:02:41]}
{[%emt 00:00:06]} Qf7 {[%clk 00:46:22]} {[%emt 00:09:11]} 20. Qg3 {[%clk
00:44:42]} {[%emt 00:18:31]} Rfd8 {[%clk 00:36:14]} {[%emt 00:10:36]} 21. h4
{[%clk 00:35:35]} {[%emt 00:09:39]} Kh8 {[%clk 00:33:18]} {[%emt 00:03:27]} 22.
Kh2 {[%clk 00:33:47]} {[%emt 00:02:17]} Qe7 {[%clk 00:31:02]} {[%emt 00:02:44]}
23. Bxd5 {[%clk 00:33:57]} {[%emt 00:00:22]} Rxd5 {[%clk 00:31:31]} {[%emt
00:00:01]} 24. h5 {[%clk 00:31:38]} {[%emt 00:02:49]} f4 {[%clk 00:25:29]}
{[%emt 00:06:30]} 25. Qg4 {[%clk 00:30:20]} {[%emt 00:01:49]} Qd7 {[%clk
00:23:28]} {[%emt 00:02:32]} 26. Qg5 {[%clk 00:25:00]} {[%emt 00:05:50]} Nd4
{[%clk 00:19:58]} {[%emt 00:04:00]} 27. Re1 {[%clk 00:20:55]} {[%emt 00:04:35]}
e4 {[%clk 00:16:00]} {[%emt 00:04:28]} 28. Qxf4 {[%clk 00:20:03]} {[%emt
00:01:22]} Rxh5+ {[%clk 00:15:09]} {[%emt 00:01:21]} 29. Kg1 {[%clk 00:20:17]}
{[%emt 00:00:15]} h6 {[%clk 00:12:33]} {[%emt 00:03:06]} 30. Qxe4 {[%clk
00:20:11]} {[%emt 00:00:36]} Nc6 {[%clk 00:11:50]} {[%emt 00:01:10]} 31. Qg6
{[%clk 00:19:52]} {[%emt 00:00:51]} 1-0

[Event "NJSK 2021 Jeugd C"]
[Site "Almelo, Netherlands"]
[Date "2021.08.05"]
[Round "6.5"]
[White "Krylov, Philippe"]
[Black "Dekker, Thiemen"]
[Result "0-1"]
[TimeControl "90min + 30sec/move"]
[WhiteElo "1339"]
[BlackElo "1806"]

1. d4 {[%clk 01:30:57]} {[%emt 00:00:03]} d5 {[%clk 01:30:28]} {[%emt
00:00:32]} 2. c4 {[%clk 01:31:17]} {[%emt 00:00:10]} e6 {[%clk 01:30:51]}
{[%emt 00:00:08]} 3. Nc3 {[%clk 01:31:43]} {[%emt 00:00:04]} Nf6 {[%clk
01:31:17]} {[%emt 00:00:04]} 4. cxd5 {[%clk 01:32:08]} {[%emt 00:00:04]} exd5
{[%clk 01:31:36]} {[%emt 00:00:11]} 5. Bg5 {[%clk 01:32:34]} {[%emt 00:00:04]}
c6 {[%clk 01:31:41]} {[%emt 00:00:26]} 6. e3 {[%clk 01:32:46]} {[%emt
00:00:18]} Bd6 {[%clk 01:31:48]} {[%emt 00:00:23]} 7. Bd3 {[%clk 01:32:52]}
{[%emt 00:00:23]} Be6 {[%clk 01:31:18]} {[%emt 00:01:00]} 8. Qc2 {[%clk
01:32:58]} {[%emt 00:00:25]} h6 {[%clk 01:31:09]} {[%emt 00:00:39]} 9. Bh4
{[%clk 01:33:11]} {[%emt 00:00:16]} O-O {[%clk 01:30:13]} {[%emt 00:01:26]} 10.
Nge2 {[%clk 01:32:40]} {[%emt 00:01:01]} a5 {[%clk 01:29:49]} {[%emt 00:00:54]}
11. O-O {[%clk 01:30:58]} {[%emt 00:02:12]} Na6 {[%clk 01:29:57]} {[%emt
00:00:23]} 12. a3 {[%clk 01:31:03]} {[%emt 00:00:25]} Nc7 {[%clk 01:29:22]}
{[%emt 00:01:05]} 13. Rab1 {[%clk 01:23:19]} {[%emt 00:08:14]} Bxh2+ {[%clk
01:28:33]} {[%emt 00:01:19]} 14. Kh1 {[%clk 01:20:23]} {[%emt 00:03:27]} Bd6
{[%clk 01:27:20]} {[%emt 00:01:43]} 15. b4 {[%clk 01:20:30]} {[%emt 00:00:23]}
axb4 {[%clk 01:26:29]} {[%emt 00:01:22]} 16. axb4 {[%clk 01:20:52]} {[%emt
00:00:08]} Na6 {[%clk 01:25:22]} {[%emt 00:01:36]} 17. Bxa6 {[%clk 01:19:27]}
{[%emt 00:01:54]} Rxa6 {[%clk 01:24:38]} {[%emt 00:01:14]} 18. b5 {[%clk
01:19:36]} {[%emt 00:00:22]} Rb6 {[%clk 01:19:19]} {[%emt 00:05:49]} 19. bxc6
{[%clk 01:19:30]} {[%emt 00:00:35]} bxc6 {[%clk 01:18:33]} {[%emt 00:01:16]} 20.
Rxb6 {[%clk 01:18:16]} {[%emt 00:01:45]} Qxb6 {[%clk 01:18:57]} {[%emt
00:00:06]} 21. Bxf6 {[%clk 01:18:34]} {[%emt 00:00:11]} gxf6 {[%clk 01:19:21]}
{[%emt 00:00:06]} 22. Rb1 {[%clk 01:18:06]} {[%emt 00:00:57]} Qd8 {[%clk
01:18:49]} {[%emt 00:01:03]} 23. Na4 {[%clk 01:16:28]} {[%emt 00:02:09]} f5
{[%clk 01:16:50]} {[%emt 00:02:29]} 24. g3 {[%clk 01:11:12]} {[%emt 00:05:46]}
Qg5 {[%clk 01:12:51]} {[%emt 00:04:28]} 25. Nf4 {[%clk 01:07:34]} {[%emt
00:04:07]} Qg4 {[%clk 01:07:58]} {[%emt 00:05:23]} 26. Qe2 {[%clk 01:07:00]}
{[%emt 00:01:04]} Bxf4 {[%clk 01:06:51]} {[%emt 00:01:37]} 27. Qxg4+ {[%clk
01:07:18]} {[%emt 00:00:11]} fxg4 {[%clk 01:07:15]} {[%emt 00:00:06]} 28. gxf4
{[%clk 01:05:18]} {[%emt 00:02:31]} Bf5 {[%clk 01:05:22]} {[%emt 00:02:23]} 29.
Rb6 {[%clk 01:05:12]} {[%emt 00:00:36]} Ra8 {[%clk 01:04:06]} {[%emt 00:01:45]}
30. Nc5 {[%clk 01:05:34]} {[%emt 00:00:09]} Ra2 {[%clk 01:03:21]} {[%emt
00:01:14]} 31. Kg2 {[%clk 01:04:40]} {[%emt 00:01:26]} Rc2 {[%clk 01:00:29]}
{[%emt 00:03:21]} 32. Rb8+ {[%clk 01:00:26]} {[%emt 00:04:44]} Kg7 {[%clk
00:59:42]} {[%emt 00:01:17]} 33. Rb6 {[%clk 01:00:40]} {[%emt 00:00:16]} h5
{[%clk 00:58:22]} {[%emt 00:01:50]} 34. Rxc6 {[%clk 01:00:27]} {[%emt
00:00:42]} h4 {[%clk 00:57:43]} {[%emt 00:01:09]} 35. Rc7 {[%clk 00:57:29]}
{[%emt 00:03:27]} Be4+ {[%clk 00:52:59]} {[%emt 00:05:15]} 36. Kf1 {[%clk
00:56:23]} {[%emt 00:01:36]} Rc1+ {[%clk 00:51:34]} {[%emt 00:01:54]} 37. Ke2
{[%clk 00:56:46]} {[%emt 00:00:09]} Bf3+ {[%clk 00:51:03]} {[%emt 00:01:00]} 38.
Kd2 {[%clk 00:56:37]} {[%emt 00:00:39]} Rd1+ {[%clk 00:49:55]} {[%emt
00:01:38]} 39. Kc3 {[%clk 00:56:52]} {[%emt 00:00:16]} h3 {[%clk 00:49:25]}
{[%emt 00:01:00]} 40. Ne6+ {[%clk 00:56:11]} {[%emt 00:01:11]} Kf6 {[%emt
00:00:36]} 41. Nc5 {[%clk 00:55:28]} {[%emt 00:01:09]} h2 {[%clk 00:48:47]}
{[%emt 00:01:06]} 42. e4 {[%clk 00:54:49]} {[%emt 00:01:09]} h1=Q {[%emt
00:01:36]} 43. e5+ {[%clk 00:55:08]} {[%emt 00:00:10]} Kg6 {[%clk 00:47:19]}
{[%emt 00:00:52]} 44. f5+ {[%clk 00:55:01]} {[%emt 00:00:36]} Kg5 {[%clk
00:46:52]} {[%emt 00:00:59]} 45. Ne6+ {[%clk 00:55:07]} {[%emt 00:00:24]} fxe6
{[%clk 00:46:36]} {[%emt 00:00:46]} 46. f6 {[%clk 00:55:25]} {[%emt 00:00:12]}
Qe1+ {[%clk 00:46:26]} {[%emt 00:00:40]} 47. Kb3 {[%clk 00:55:45]} {[%emt
00:00:09]} Rb1+ {[%clk 00:46:01]} {[%emt 00:00:56]} 0-1